[Event "Titled Tuesday Blitz August 22 Early 2023"]
[White "Fernandez Lopez, Ruben"]
[Black "Blokhin, Sofia"]
[WhiteFideId "24518298"]
[BlackFideId "4508190"]
[WhiteElo "2467"]
[BlackElo "2299"]
[Result "1-0"]
[Round "5"]
[TimeControl "180+1"]
[Date "2023.08.22"]
[WhiteClock "0:00:57"]
[BlackClock "0:00:05"]
[Board "194"]

1. b3 {[%clk 0:02:40]}  d5 {[%clk 0:02:56]} 2. Bb2 {[%clk 0:02:41]}  Nf6 {[%clk 0:02:55]} 3. Bc1 {[%clk 0:02:42]}  e6 {[%clk 0:02:55]} 4. Ba3 {[%clk 0:02:43]}  Bxa3 {[%clk 0:02:52]} 5. Nxa3 {[%clk 0:02:44]}  c5 {[%clk 0:02:48]} 6. e3 {[%clk 0:02:43]}  O-O {[%clk 0:02:46]} 7. Nf3 {[%clk 0:02:43]}  Nc6 {[%clk 0:02:46]} 8. Be2 {[%clk 0:02:43]}  a6 {[%clk 0:02:41]} 9. O-O {[%clk 0:02:43]}  b5 {[%clk 0:02:40]} 10. c4 {[%clk 0:02:43]}  b4 {[%clk 0:02:37]} 11. Nc2 {[%clk 0:02:43]}  Bb7 {[%clk 0:02:31]} 12. d4 {[%clk 0:02:42]}  cxd4 {[%clk 0:02:28]} 13. Nfxd4 {[%clk 0:02:43]}  Nxd4 {[%clk 0:02:24]} 14. Qxd4 {[%clk 0:02:44]}  a5 {[%clk 0:02:18]} 15. Rfd1 {[%clk 0:02:43]}  Qc7 {[%clk 0:02:14]} 16. Rac1 {[%clk 0:02:42]}  dxc4 {[%clk 0:02:08]} 17. Bxc4 {[%clk 0:02:42]}  Qc6 {[%clk 0:02:05]} 18. f3 {[%clk 0:02:40]}  Qc7 {[%clk 0:01:52]} 19. Qh4 {[%clk 0:02:39]}  Qe5 {[%clk 0:01:45]} 20. Qd4 {[%clk 0:02:36]}  Qg5 {[%clk 0:01:41]} 21. Qb6 {[%clk 0:02:35]}  Bxf3 {[%clk 0:01:37]} 22. Rd2 {[%clk 0:02:35]}  Ne4 {[%clk 0:01:23]} 23. Rcd1 {[%clk 0:02:24]}  Nxd2 {[%clk 0:01:03]} 24. Rxd2 {[%clk 0:02:25]}  Rad8 {[%clk 0:01:00]} 25. Rf2 {[%clk 0:02:23]}  Rd1+ {[%clk 0:00:56]} 26. Bf1 {[%clk 0:02:24]}  Rfd8 {[%clk 0:00:47]} 27. Rxf3 {[%clk 0:02:23]}  h5 {[%clk 0:00:43]} 28. Nd4 {[%clk 0:02:19]}  h4 {[%clk 0:00:36]} 29. Qc7 {[%clk 0:02:07]}  Rf8 {[%clk 0:00:20]} 30. Qd6 {[%clk 0:01:57]}  Rd8 {[%clk 0:00:19]} 31. Qc7 {[%clk 0:01:55]}  Rf8 {[%clk 0:00:19]} 32. Qc6 {[%clk 0:01:49]}  e5 {[%clk 0:00:17]} 33. Ne6 {[%clk 0:01:46]}  Qg6 {[%clk 0:00:11]} 34. Qc5 {[%clk 0:01:08]}  Qxe6 {[%clk 0:00:10]} 35. Qxa5 {[%clk 0:01:08]}  e4 {[%clk 0:00:10]} 36. Rf2 {[%clk 0:01:08]}  Rfd8 {[%clk 0:00:09]} 37. Qxb4 {[%clk 0:01:07]}  Qg6 {[%clk 0:00:08]} 38. h3 {[%clk 0:01:06]}  Qg5 {[%clk 0:00:08]} 39. Qc4 {[%clk 0:01:04]}  Qxe3 {[%clk 0:00:07]} 40. Qxf7+ {[%clk 0:01:04]}  Kh8 {[%clk 0:00:07]} 41. Qh5+ {[%clk 0:01:04]}  Qh6 {[%clk 0:00:07]} 42. Qe2 {[%clk 0:01:01]}  e3 {[%clk 0:00:07]} 43. Rf3 {[%clk 0:01:01]}  R1d2 {[%clk 0:00:06]} 44. Qxe3 {[%clk 0:01:01]}  Qxe3+ {[%clk 0:00:06]} 45. Rxe3 {[%clk 0:01:02]}  Rxa2 {[%clk 0:00:06]} 46. Bc4 {[%clk 0:01:02]}  Ra1+ {[%clk 0:00:05]} 47. Kf2 {[%clk 0:00:58]}  Rdd1 {[%clk 0:00:06]} 48. Re4 {[%clk 0:00:57]}  Rd2+ {[%clk 0:00:06]} 49. Ke3 {[%clk 0:00:57]}  Rdd1 {[%clk 0:00:05]} 50. Rxh4# {[%clk 0:00:57]} 1-0


[Site "https://www.chess.com"]

[Event "Titled Tuesday Blitz August 22 Early 2023"]
[White "laimis61"]
[Black "Ljukin, Sergei"]
[BlackFideId "14102200"]
[WhiteElo "2269"]
[BlackElo "2448"]
[Result "0-1"]
[Round "5"]
[TimeControl "180+1"]
[Date "2023.08.22"]
[WhiteClock "0:00:00"]
[BlackClock "0:00:40"]
[Board "196"]

1. e4 {[%clk 0:03:00]}  e6 {[%clk 0:02:47]} 2. d4 {[%clk 0:02:59]}  d5 {[%clk 0:02:47]} 3. Nc3 {[%clk 0:02:58]}  Bb4 {[%clk 0:02:46]} 4. Ne2 {[%clk 0:02:56]}  Nc6 {[%clk 0:02:46]} 5. e5 {[%clk 0:02:54]}  f6 {[%clk 0:02:43]} 6. exf6 {[%clk 0:02:46]}  Nxf6 {[%clk 0:02:42]} 7. a3 {[%clk 0:02:41]}  Ba5 {[%clk 0:02:40]} 8. b4 {[%clk 0:02:39]}  Bb6 {[%clk 0:02:40]} 9. Na4 {[%clk 0:02:38]}  O-O {[%clk 0:02:36]} 10. Bf4 {[%clk 0:02:09]}  Ne4 {[%clk 0:02:30]} 11. Nxb6 {[%clk 0:02:00]}  axb6 {[%clk 0:02:29]} 12. f3 {[%clk 0:01:59]}  Nd6 {[%clk 0:02:21]} 13. Bg3 {[%clk 0:01:54]}  Nc4 {[%clk 0:02:18]} 14. Qc1 {[%clk 0:01:43]}  e5 {[%clk 0:02:15]} 15. dxe5 {[%clk 0:01:38]}  N6xe5 {[%clk 0:02:15]} 16. Nd4 {[%clk 0:01:13]}  c5 {[%clk 0:02:10]} 17. bxc5 {[%clk 0:01:09]}  bxc5 {[%clk 0:02:10]} 18. Bxc4 {[%clk 0:01:08]}  Nxc4 {[%clk 0:02:07]} 19. Ne2 {[%clk 0:00:57]}  Qa5+ {[%clk 0:01:20]} 20. Kf2 {[%clk 0:00:56]}  b5 {[%clk 0:01:16]} 21. Rd1 {[%clk 0:00:50]}  d4 {[%clk 0:01:07]} 22. Qg5 {[%clk 0:00:44]}  Qb6 {[%clk 0:00:57]} 23. Qd5+ {[%clk 0:00:42]}  Be6 {[%clk 0:00:55]} 24. Qh5 {[%clk 0:00:29]}  Nxa3 {[%clk 0:00:49]} 25. Nf4 {[%clk 0:00:23]}  Bf7 {[%clk 0:00:46]} 26. Qg4 {[%clk 0:00:21]}  Nxc2 {[%clk 0:00:43]} 27. Rxa8 {[%clk 0:00:20]}  Rxa8 {[%clk 0:00:43]} 28. Bh4 {[%clk 0:00:00]}  Ne3 {[%clk 0:00:40]} 0-1


[Site "https://www.chess.com"]

[Event "Titled Tuesday Blitz August 22 Early 2023"]
[White "Bueno, Alfeu Junior Varela"]
[Black "Fernandez Hernandez, Gerardo"]
[WhiteFideId "2108879"]
[BlackFideId "2207400"]
[WhiteElo "2423"]
[BlackElo "2251"]
[Result "1/2-1/2"]
[Round "5"]
[TimeControl "180+1"]
[Date "2023.08.22"]
[WhiteClock "0:00:27"]
[BlackClock "0:00:20"]
[Board "199"]

1. e4 {[%clk 0:02:18]}  e6 {[%clk 0:02:58]} 2. d4 {[%clk 0:02:18]}  d5 {[%clk 0:02:59]} 3. Nd2 {[%clk 0:02:19]}  Nc6 {[%clk 0:02:58]} 4. Bb5 {[%clk 0:02:18]}  dxe4 {[%clk 0:02:57]} 5. Bxc6+ {[%clk 0:02:16]}  bxc6 {[%clk 0:02:56]} 6. Nxe4 {[%clk 0:02:17]}  Qd5 {[%clk 0:02:55]} 7. Qd3 {[%clk 0:02:13]}  Ba6 {[%clk 0:02:39]} 8. Qxa6 {[%clk 0:01:58]}  Qxe4+ {[%clk 0:02:39]} 9. Ne2 {[%clk 0:01:57]}  Nf6 {[%clk 0:01:40]} 10. O-O {[%clk 0:01:53]}  Bd6 {[%clk 0:01:28]} 11. Nc3 {[%clk 0:01:18]}  Qxd4 {[%clk 0:01:10]} 12. Qxc6+ {[%clk 0:01:17]}  Ke7 {[%clk 0:01:10]} 13. Bg5 {[%clk 0:01:07]}  h6 {[%clk 0:00:44]} 14. Rad1 {[%clk 0:00:47]}  hxg5 {[%clk 0:00:35]} 15. Rxd4 {[%clk 0:00:37]}  Bxh2+ {[%clk 0:00:35]} 16. Kh1 {[%clk 0:00:35]}  Be5+ {[%clk 0:00:29]} 17. Kg1 {[%clk 0:00:33]}  Bh2+ {[%clk 0:00:29]} 18. Kh1 {[%clk 0:00:28]}  Be5+ {[%clk 0:00:25]} 19. Kg1 {[%clk 0:00:27]}  Bh2+ {[%clk 0:00:20]} 1/2-1/2


[Site "https://www.chess.com"]

[Event "Titled Tuesday Blitz August 22 Early 2023"]
[White "AndresDelgado77"]
[Black "Mrudul Dehankar"]
[BlackFideId "25096990"]
[WhiteElo "2233"]
[BlackElo "2421"]
[Result "1-0"]
[Round "5"]
[TimeControl "180+1"]
[Date "2023.08.22"]
[WhiteClock "0:01:36"]
[BlackClock "0:01:43"]
[Board "200"]

1. e4 {[%clk 0:03:00]}  c6 {[%clk 0:02:56]} 2. Ne2 {[%clk 0:02:56]}  d5 {[%clk 0:02:55]} 3. e5 {[%clk 0:02:56]}  Bf5 {[%clk 0:02:51]} 4. Ng3 {[%clk 0:02:55]}  Bg6 {[%clk 0:02:51]} 5. h4 {[%clk 0:02:55]}  h6 {[%clk 0:02:49]} 6. h5 {[%clk 0:02:55]}  Bh7 {[%clk 0:02:49]} 7. e6 {[%clk 0:02:55]}  fxe6 {[%clk 0:02:49]} 8. d4 {[%clk 0:02:52]}  Qd6 {[%clk 0:02:45]} 9. Bd3 {[%clk 0:02:39]}  Bxd3 {[%clk 0:02:28]} 10. Qxd3 {[%clk 0:02:39]}  Nd7 {[%clk 0:02:29]} 11. Qg6+ {[%clk 0:02:37]}  Kd8 {[%clk 0:02:28]} 12. f4 {[%clk 0:02:20]}  Ngf6 {[%clk 0:02:21]} 13. O-O {[%clk 0:02:15]}  Rc8 {[%clk 0:02:14]} 14. Nd2 {[%clk 0:02:15]}  Kc7 {[%clk 0:02:08]} 15. Nf3 {[%clk 0:02:12]}  Kb8 {[%clk 0:02:08]} 16. Ne5 {[%clk 0:02:10]}  Ka8 {[%clk 0:02:07]} 17. Nf7 {[%clk 0:02:08]}  Qb4 {[%clk 0:01:43]} 18. c3 {[%clk 0:02:07]}  Qb6 {[%clk 0:01:44]} 19. Nxh8 {[%clk 0:02:05]}  c5 {[%clk 0:01:44]} 20. Rd1 {[%clk 0:01:52]}  cxd4 {[%clk 0:01:42]} 21. cxd4 {[%clk 0:01:52]}  e5 {[%clk 0:01:43]} 22. fxe5 {[%clk 0:01:40]}  Nxe5 {[%clk 0:01:43]} 23. Qf5 {[%clk 0:01:37]}  Neg4 {[%clk 0:01:43]} 24. Qxc8# {[%clk 0:01:36]} 1-0


[Site "https://www.chess.com"]

[Event "Titled Tuesday Blitz August 22 Early 2023"]
[White "Ronka, Erik"]
[Black "le-castor-faineant"]
[WhiteFideId "505080"]
[WhiteElo "2418"]
[BlackElo "2231"]
[Result "0-1"]
[Round "5"]
[TimeControl "180+1"]
[Date "2023.08.22"]
[WhiteClock "0:00:07"]
[BlackClock "0:00:33"]
[Board "202"]

1. e4 {[%clk 0:03:00]}  e5 {[%clk 0:02:54]} 2. Nf3 {[%clk 0:03:01]}  Nf6 {[%clk 0:02:54]} 3. Nc3 {[%clk 0:03:00]}  Nc6 {[%clk 0:02:54]} 4. d4 {[%clk 0:02:59]}  exd4 {[%clk 0:02:52]} 5. Nxd4 {[%clk 0:03:00]}  Bc5 {[%clk 0:02:49]} 6. Be3 {[%clk 0:02:58]}  Nxd4 {[%clk 0:02:33]} 7. Bxd4 {[%clk 0:02:59]}  Bxd4 {[%clk 0:02:31]} 8. Qxd4 {[%clk 0:03:00]}  O-O {[%clk 0:02:30]} 9. O-O-O {[%clk 0:02:59]}  d6 {[%clk 0:02:28]} 10. f3 {[%clk 0:02:51]}  a6 {[%clk 0:02:26]} 11. g4 {[%clk 0:02:51]}  b5 {[%clk 0:02:26]} 12. h4 {[%clk 0:02:47]}  Nd7 {[%clk 0:02:22]} 13. g5 {[%clk 0:02:41]}  Rb8 {[%clk 0:02:15]} 14. Rg1 {[%clk 0:02:24]}  Ne5 {[%clk 0:02:02]} 15. Be2 {[%clk 0:02:06]}  b4 {[%clk 0:01:58]} 16. Nd5 {[%clk 0:01:57]}  Be6 {[%clk 0:01:46]} 17. f4 {[%clk 0:01:55]}  Bxd5 {[%clk 0:01:18]} 18. exd5 {[%clk 0:01:48]}  Nd7 {[%clk 0:01:19]} 19. h5 {[%clk 0:01:41]}  f5 {[%clk 0:01:17]} 20. h6 {[%clk 0:01:35]}  Qe7 {[%clk 0:01:11]} 21. hxg7 {[%clk 0:01:28]}  Qxg7 {[%clk 0:01:12]} 22. Qf2 {[%clk 0:01:09]}  Nc5 {[%clk 0:01:10]} 23. g6 {[%clk 0:00:44]}  h6 {[%clk 0:01:09]} 24. Bf3 {[%clk 0:00:34]}  Na4 {[%clk 0:01:07]} 25. Rd4 {[%clk 0:00:34]}  Rf6 {[%clk 0:00:56]} 26. Be2 {[%clk 0:00:23]}  Re8 {[%clk 0:00:55]} 27. Bxa6 {[%clk 0:00:21]}  Re4 {[%clk 0:00:54]} 28. Rxe4 {[%clk 0:00:18]}  fxe4 {[%clk 0:00:55]} 29. Bb5 {[%clk 0:00:18]}  Nxb2 {[%clk 0:00:54]} 30. f5 {[%clk 0:00:16]}  e3 {[%clk 0:00:44]} 31. Qxe3 {[%clk 0:00:13]}  Rxf5 {[%clk 0:00:44]} 32. Bd7 {[%clk 0:00:10]}  Rf8 {[%clk 0:00:34]} 33. Be6+ {[%clk 0:00:09]}  Kh8 {[%clk 0:00:34]} 34. Re1 {[%clk 0:00:08]}  Nc4 {[%clk 0:00:33]} 35. Qe4 {[%clk 0:00:07]}  Qa1# {[%clk 0:00:33]} 0-1


[Site "https://www.chess.com"]

[Event "Titled Tuesday Blitz August 22 Early 2023"]
[White "Clawitter, Craig"]
[Black "Efremov, Vladislav"]
[WhiteFideId "2023105"]
[BlackFideId "44159935"]
[WhiteElo "2217"]
[BlackElo "2410"]
[Result "1/2-1/2"]
[Round "5"]
[TimeControl "180+1"]
[Date "2023.08.22"]
[WhiteClock "0:00:11"]
[BlackClock "0:00:04"]
[Board "205"]

1. e4 {[%clk 0:02:57]}  c5 {[%clk 0:02:59]} 2. Nf3 {[%clk 0:02:57]}  d6 {[%clk 0:02:59]} 3. d4 {[%clk 0:02:58]}  cxd4 {[%clk 0:03:00]} 4. Nxd4 {[%clk 0:02:59]}  Nf6 {[%clk 0:03:00]} 5. Nc3 {[%clk 0:02:59]}  a6 {[%clk 0:03:01]} 6. Be3 {[%clk 0:03:00]}  Ng4 {[%clk 0:03:00]} 7. Bg5 {[%clk 0:02:59]}  h6 {[%clk 0:03:00]} 8. Bh4 {[%clk 0:03:00]}  g5 {[%clk 0:03:01]} 9. Bg3 {[%clk 0:03:00]}  Bg7 {[%clk 0:03:01]} 10. h3 {[%clk 0:03:01]}  Ne5 {[%clk 0:03:01]} 11. Nf5 {[%clk 0:03:01]}  Bxf5 {[%clk 0:03:01]} 12. exf5 {[%clk 0:03:01]}  Nbc6 {[%clk 0:03:02]} 13. Nd5 {[%clk 0:03:01]}  Rc8 {[%clk 0:02:49]} 14. c3 {[%clk 0:02:51]}  h5 {[%clk 0:02:44]} 15. Be2 {[%clk 0:02:45]}  h4 {[%clk 0:02:40]} 16. Bh2 {[%clk 0:02:45]}  O-O {[%clk 0:02:28]} 17. O-O {[%clk 0:02:45]}  e6 {[%clk 0:02:28]} 18. Ne3 {[%clk 0:02:32]}  d5 {[%clk 0:02:26]} 19. Bg4 {[%clk 0:02:27]}  Qf6 {[%clk 0:02:22]} 20. fxe6 {[%clk 0:02:18]}  fxe6 {[%clk 0:02:22]} 21. Nxd5 {[%clk 0:02:11]}  exd5 {[%clk 0:02:20]} 22. Bxc8 {[%clk 0:02:11]}  Rxc8 {[%clk 0:02:18]} 23. Qxd5+ {[%clk 0:02:11]}  Kh8 {[%clk 0:02:06]} 24. Rad1 {[%clk 0:02:02]}  Rf8 {[%clk 0:02:01]} 25. Kh1 {[%clk 0:01:21]}  Ng6 {[%clk 0:01:47]} 26. Qd6 {[%clk 0:01:05]}  Qf7 {[%clk 0:01:38]} 27. Rfe1 {[%clk 0:00:51]}  Rd8 {[%clk 0:01:16]} 28. Qc5 {[%clk 0:00:49]}  Rxd1 {[%clk 0:01:06]} 29. Rxd1 {[%clk 0:00:50]}  Be5 {[%clk 0:01:05]} 30. Bxe5+ {[%clk 0:00:26]}  Ngxe5 {[%clk 0:01:06]} 31. Rd5 {[%clk 0:00:26]}  Qf4 {[%clk 0:01:00]} 32. Qe3 {[%clk 0:00:11]}  Qf5 {[%clk 0:00:28]} 33. b3 {[%clk 0:00:10]}  Kg7 {[%clk 0:00:27]} 34. c4 {[%clk 0:00:09]}  Qb1+ {[%clk 0:00:25]} 35. Kh2 {[%clk 0:00:09]}  Qf5 {[%clk 0:00:25]} 36. Rd6 {[%clk 0:00:07]}  Nf7 {[%clk 0:00:21]} 37. Rd5 {[%clk 0:00:06]}  Nce5 {[%clk 0:00:20]} 38. f3 {[%clk 0:00:06]}  Qf6 {[%clk 0:00:17]} 39. Qd4 {[%clk 0:00:06]}  Qe6 {[%clk 0:00:15]} 40. Rd7 {[%clk 0:00:05]}  Kg8 {[%clk 0:00:15]} 41. Rxb7 {[%clk 0:00:05]}  Nc6 {[%clk 0:00:13]} 42. Qd7 {[%clk 0:00:04]}  Qe5+ {[%clk 0:00:12]} 43. Kg1 {[%clk 0:00:04]}  Qe1+ {[%clk 0:00:13]} 44. Kh2 {[%clk 0:00:05]}  Qg3+ {[%clk 0:00:13]} 45. Kg1 {[%clk 0:00:05]}  Nce5 {[%clk 0:00:13]} 46. Qf5 {[%clk 0:00:05]}  Qe1+ {[%clk 0:00:12]} 47. Kh2 {[%clk 0:00:05]}  Qg3+ {[%clk 0:00:13]} 48. Kg1 {[%clk 0:00:05]}  Qe1+ {[%clk 0:00:11]} 49. Kh2 {[%clk 0:00:06]}  Qe3 {[%clk 0:00:11]} 50. Rxf7 {[%clk 0:00:05]}  Nxf7 {[%clk 0:00:11]} 51. Qg6+ {[%clk 0:00:06]}  Kf8 {[%clk 0:00:10]} 52. Qxa6 {[%clk 0:00:06]}  Qf4+ {[%clk 0:00:10]} 53. Kg1 {[%clk 0:00:06]}  Qc1+ {[%clk 0:00:09]} 54. Kh2 {[%clk 0:00:07]}  Qf4+ {[%clk 0:00:09]} 55. Kg1 {[%clk 0:00:07]}  Ne5 {[%clk 0:00:10]} 56. Qe6 {[%clk 0:00:07]}  Qc1+ {[%clk 0:00:09]} 57. Kh2 {[%clk 0:00:07]}  Qe1 {[%clk 0:00:09]} 58. Qf5+ {[%clk 0:00:06]}  Nf7 {[%clk 0:00:08]} 59. Qf6 {[%clk 0:00:07]}  Qg3+ {[%clk 0:00:08]} 60. Kg1 {[%clk 0:00:07]}  Qe1+ {[%clk 0:00:08]} 61. Kh2 {[%clk 0:00:07]}  Ke8 {[%clk 0:00:08]} 62. Qg7 {[%clk 0:00:07]}  Qg3+ {[%clk 0:00:08]} 63. Kg1 {[%clk 0:00:07]}  Ne5 {[%clk 0:00:08]} 64. Qg8+ {[%clk 0:00:06]}  Ke7 {[%clk 0:00:08]} 65. Qd5 {[%clk 0:00:06]}  Qe1+ {[%clk 0:00:08]} 66. Kh2 {[%clk 0:00:06]}  Qe2 {[%clk 0:00:07]} 67. Qe4 {[%clk 0:00:06]}  Qxe4 {[%clk 0:00:03]} 68. fxe4 {[%clk 0:00:07]}  Kd6 {[%clk 0:00:03]} 69. Kg1 {[%clk 0:00:07]}  Kc5 {[%clk 0:00:04]} 70. Kf2 {[%clk 0:00:08]}  Kb4 {[%clk 0:00:04]} 71. Ke3 {[%clk 0:00:08]}  Nc6 {[%clk 0:00:04]} 72. Kf3 {[%clk 0:00:07]}  Ne5+ {[%clk 0:00:03]} 73. Ke3 {[%clk 0:00:08]}  Nc6 {[%clk 0:00:02]} 74. e5 {[%clk 0:00:07]}  Nxe5 {[%clk 0:00:02]} 75. Ke4 {[%clk 0:00:08]}  Ng6 {[%clk 0:00:03]} 76. Kf5 {[%clk 0:00:08]}  Nf4 {[%clk 0:00:03]} 77. Kxg5 {[%clk 0:00:08]}  Nxg2 {[%clk 0:00:04]} 78. Kg4 {[%clk 0:00:09]}  Ka3 {[%clk 0:00:02]} 79. Kf3 {[%clk 0:00:09]}  Ne1+ {[%clk 0:00:02]} 80. Kg4 {[%clk 0:00:09]}  Ng2 {[%clk 0:00:02]} 81. Kf3 {[%clk 0:00:10]}  Ne1+ {[%clk 0:00:02]} 82. Kf2 {[%clk 0:00:10]}  Nd3+ {[%clk 0:00:02]} 83. Kf3 {[%clk 0:00:10]}  Kxa2 {[%clk 0:00:02]} 84. Kg4 {[%clk 0:00:10]}  Kxb3 {[%clk 0:00:02]} 85. Kxh4 {[%clk 0:00:10]}  Kxc4 {[%clk 0:00:03]} 86. Kg5 {[%clk 0:00:11]}  Kd5 {[%clk 0:00:03]} 87. Kg6 {[%clk 0:00:11]}  Nf4+ {[%clk 0:00:03]} 88. Kg7 {[%clk 0:00:11]}  Nxh3 {[%clk 0:00:04]} 1/2-1/2


[Site "https://www.chess.com"]

[Event "Titled Tuesday Blitz August 22 Early 2023"]
[White "knightinshiningarmour16"]
[Black "Smiechu"]
[WhiteElo "2140"]
[BlackElo "2395"]
[Result "0-1"]
[Round "5"]
[TimeControl "180+1"]
[Date "2023.08.22"]
[WhiteClock "0:01:53"]
[BlackClock "0:01:47"]
[Board "209"]

1. d4 {[%clk 0:03:00]}  Nf6 {[%clk 0:02:59]} 2. c4 {[%clk 0:02:57]}  c5 {[%clk 0:02:59]} 3. d5 {[%clk 0:02:55]}  e6 {[%clk 0:02:59]} 4. Nc3 {[%clk 0:02:53]}  exd5 {[%clk 0:03:00]} 5. cxd5 {[%clk 0:02:53]}  d6 {[%clk 0:03:00]} 6. e4 {[%clk 0:02:53]}  g6 {[%clk 0:03:01]} 7. Bd3 {[%clk 0:02:52]}  Bg7 {[%clk 0:02:56]} 8. Nge2 {[%clk 0:02:52]}  O-O {[%clk 0:02:55]} 9. f3 {[%clk 0:02:52]}  a6 {[%clk 0:02:53]} 10. O-O {[%clk 0:02:51]}  b5 {[%clk 0:02:52]} 11. Bg5 {[%clk 0:02:47]}  Nbd7 {[%clk 0:02:49]} 12. Qd2 {[%clk 0:02:47]}  Re8 {[%clk 0:02:47]} 13. Bh6 {[%clk 0:02:46]}  Bh8 {[%clk 0:02:46]} 14. f4 {[%clk 0:02:41]}  b4 {[%clk 0:02:41]} 15. Na4 {[%clk 0:02:32]}  Nxe4 {[%clk 0:02:36]} 16. Bxe4 {[%clk 0:02:32]}  Rxe4 {[%clk 0:02:36]} 17. a3 {[%clk 0:02:29]}  a5 {[%clk 0:02:31]} 18. axb4 {[%clk 0:02:28]}  axb4 {[%clk 0:02:30]} 19. Nxc5 {[%clk 0:02:24]}  Rxe2 {[%clk 0:02:10]} 20. Qxe2 {[%clk 0:02:24]}  Rxa1 {[%clk 0:02:09]} 21. Rxa1 {[%clk 0:02:15]}  Nxc5 {[%clk 0:02:08]} 22. Re1 {[%clk 0:02:11]}  Bd7 {[%clk 0:02:02]} 23. Ra1 {[%clk 0:02:07]}  Bg7 {[%clk 0:01:58]} 24. Bxg7 {[%clk 0:02:07]}  Kxg7 {[%clk 0:01:58]} 25. Qd2 {[%clk 0:02:03]}  Nb3 {[%clk 0:01:48]} 26. Qd1 {[%clk 0:01:55]}  Nxa1 {[%clk 0:01:48]} 27. Qxa1 {[%clk 0:01:55]}  Qb6+ {[%clk 0:01:47]} 28. Kh1 {[%clk 0:01:53]}  Qd4 {[%clk 0:01:47]} 0-1


[Site "https://www.chess.com"]

[Event "Titled Tuesday Blitz August 22 Early 2023"]
[White "Cagara, Paulina"]
[Black "Legenia, Artem"]
[WhiteFideId "1124870"]
[BlackFideId "14136945"]
[WhiteElo "2138"]
[BlackElo "2393"]
[Result "1-0"]
[Round "5"]
[TimeControl "180+1"]
[Date "2023.08.22"]
[WhiteClock "0:01:23"]
[BlackClock "0:01:37"]
[Board "210"]

1. e4 {[%clk 0:03:00]}  e6 {[%clk 0:02:57]} 2. d4 {[%clk 0:03:00]}  d5 {[%clk 0:02:57]} 3. Nc3 {[%clk 0:02:59]}  dxe4 {[%clk 0:02:54]} 4. Nxe4 {[%clk 0:02:58]}  Nd7 {[%clk 0:02:55]} 5. Nf3 {[%clk 0:02:57]}  Ngf6 {[%clk 0:02:55]} 6. Nxf6+ {[%clk 0:02:55]}  Nxf6 {[%clk 0:02:55]} 7. Bd3 {[%clk 0:02:55]}  c5 {[%clk 0:02:55]} 8. O-O {[%clk 0:02:51]}  cxd4 {[%clk 0:02:55]} 9. Nxd4 {[%clk 0:02:50]}  Be7 {[%clk 0:02:56]} 10. Be3 {[%clk 0:02:46]}  O-O {[%clk 0:02:54]} 11. Qe2 {[%clk 0:02:42]}  e5 {[%clk 0:02:33]} 12. Nf5 {[%clk 0:02:40]}  e4 {[%clk 0:02:30]} 13. Nxe7+ {[%clk 0:02:39]}  Qxe7 {[%clk 0:02:30]} 14. Bc4 {[%clk 0:02:38]}  Bg4 {[%clk 0:02:27]} 15. Qd2 {[%clk 0:02:36]}  Rfd8 {[%clk 0:02:27]} 16. Qa5 {[%clk 0:02:33]}  Rac8 {[%clk 0:02:27]} 17. Bb3 {[%clk 0:02:32]}  b6 {[%clk 0:02:26]} 18. Qa6 {[%clk 0:02:26]}  Nd5 {[%clk 0:02:19]} 19. Rfe1 {[%clk 0:02:10]}  Nb4 {[%clk 0:02:04]} 20. Qa4 {[%clk 0:01:59]}  Bd7 {[%clk 0:01:59]} 21. Qa3 {[%clk 0:01:57]}  a5 {[%clk 0:01:54]} 22. c3 {[%clk 0:01:56]}  Nd5 {[%clk 0:01:53]} 23. Bxd5 {[%clk 0:01:51]}  Qxa3 {[%clk 0:01:44]} 24. bxa3 {[%clk 0:01:50]}  Rxc3 {[%clk 0:01:44]} 25. Bxb6 {[%clk 0:01:46]}  Rdc8 {[%clk 0:01:41]} 26. Rad1 {[%clk 0:01:37]}  Bg4 {[%clk 0:01:37]} 27. f3 {[%clk 0:01:28]}  exf3 {[%clk 0:01:37]} 28. Bxf3 {[%clk 0:01:27]}  Bxf3 {[%clk 0:01:37]} 29. gxf3 {[%clk 0:01:27]}  Rxf3 {[%clk 0:01:38]} 30. Rd8+ {[%clk 0:01:25]}  Rxd8 {[%clk 0:01:38]} 31. Bxd8 {[%clk 0:01:25]}  Kf8 {[%clk 0:01:38]} 32. Bxa5 {[%clk 0:01:23]}  Rxa3 {[%clk 0:01:37]} 33. Bb4+ {[%clk 0:01:23]} 1-0


[Site "https://www.chess.com"]

[Event "Titled Tuesday Blitz August 22 Early 2023"]
[White "Feliz Dotel, Dewar Bienvenido"]
[Black "Gheorghiu, Calin"]
[WhiteFideId "6402801"]
[BlackFideId "1200305"]
[WhiteElo "2131"]
[BlackElo "2390"]
[Result "1-0"]
[Round "5"]
[TimeControl "180+1"]
[Date "2023.08.22"]
[WhiteClock "0:00:57"]
[BlackClock "0:00:00"]
[Board "212"]

1. d4 {[%clk 0:03:00]}  Nf6 {[%clk 0:02:59]} 2. e3 {[%clk 0:03:00]}  d5 {[%clk 0:02:58]} 3. Nf3 {[%clk 0:03:00]}  g6 {[%clk 0:02:56]} 4. Be2 {[%clk 0:02:58]}  Bg7 {[%clk 0:02:56]} 5. O-O {[%clk 0:02:58]}  O-O {[%clk 0:02:57]} 6. b4 {[%clk 0:02:58]}  a5 {[%clk 0:02:53]} 7. b5 {[%clk 0:02:58]}  a4 {[%clk 0:02:46]} 8. c4 {[%clk 0:02:57]}  Ne4 {[%clk 0:02:36]} 9. Bb2 {[%clk 0:02:55]}  c6 {[%clk 0:02:30]} 10. Qc2 {[%clk 0:02:53]}  Nd7 {[%clk 0:02:23]} 11. Nbd2 {[%clk 0:02:38]}  a3 {[%clk 0:02:11]} 12. Bc1 {[%clk 0:02:23]}  Nd6 {[%clk 0:01:11]} 13. bxc6 {[%clk 0:02:21]}  bxc6 {[%clk 0:01:10]} 14. Rb1 {[%clk 0:02:20]}  Re8 {[%clk 0:00:37]} 15. cxd5 {[%clk 0:02:02]}  cxd5 {[%clk 0:00:36]} 16. Qb3 {[%clk 0:02:02]}  Qa5 {[%clk 0:00:25]} 17. Qb4 {[%clk 0:01:36]}  Qa7 {[%clk 0:00:14]} 18. Nb3 {[%clk 0:01:25]}  Rb8 {[%clk 0:00:11]} 19. Qxa3 {[%clk 0:01:23]}  Qxa3 {[%clk 0:00:09]} 20. Bxa3 {[%clk 0:01:23]}  Nc4 {[%clk 0:00:09]} 21. Bxc4 {[%clk 0:01:10]}  dxc4 {[%clk 0:00:09]} 22. Nc5 {[%clk 0:01:09]}  Rxb1 {[%clk 0:00:07]} 23. Rxb1 {[%clk 0:01:08]}  Nxc5 {[%clk 0:00:07]} 24. Bxc5 {[%clk 0:01:08]}  Be6 {[%clk 0:00:00]} 25. a3 {[%clk 0:00:57]} 1-0


[Site "https://www.chess.com"]